fUSD/lending_fUSD_20240515
["ID","MTS","AMOUNT","RATE_DAILY","PERIOD"]
[327092964,1715807432137,-191.89079298,0.00010619,2]
[327092965,1715807432148,-308.09920702,0.00010619,2]
[327092966,1715807432158,-368.21530404,0.00010619,2]
[327092967,1715807432169,-1395.94038768,0.00010619,2]
[327092969,1715807432195,-216.36430828,0.00010619,2]
[327092971,1715807432204,-480.28,0.00010625,2]
[327092973,1715807432214,-104.7212394,0.00010631,2]
[327092975,1715807432226,-50.2187606,0.00010631,2]
[327092977,1715807432235,-154.94,0.000107,2]
[327092979,1715807432244,-154.94,0.00010769,2]
[327092981,1715807432253,-154.94,0.00010838,2]
[327092983,1715807432263,-626.94895566,0.000109,2]
[327092986,1715807432273,-154.94,0.00010907,2]
[327092987,1715807432283,-591.14,0.00010959,3]
[327092989,1715807432292,-154.94,0.00010975,2]
[327092992,1715807432302,-148.82576591,0.0001098,2]
[327092994,1715807432314,-451.10903409,0.0001098,2]
[327092996,1715807432328,-393.54961396,0.00011,2]
[327092998,1715807432338,-143.557043,0.00011003,2]
[327093000,1715807432350,-9.482957,0.00011003,2]
[327093002,1715807432359,-154.94,0.00011044,2]
[327093004,1715807432370,-1335.2156,0.00011079,2]
[327093006,1715807432380,-666.6199,0.00011079,2]
[327093008,1715807432390,-154.94,0.00011113,2]
[327093009,1715807432401,-1373.02227071,0.00011522,2]
[327093016,1715807437967,-611.56751101,0.00011002,2]
[327093017,1715807437979,-191.78086569,0.00011002,2]
[327093018,1715807437988,-2492.13379729,0.00011522,2]
[327093019,1715807437997,-638.686991,0.00011522,2]
[327093020,1715807438007,-485.555802,0.00011522,2]
[327093021,1715807438016,-172.794908,0.00011522,2]
[327093022,1715807438026,-185.533398,0.00011522,2]
[327093023,1715807438035,-182.884525,0.00011522,2]
[327093024,1715807438044,-585.230476,0.00011522,2]
[327093025,1715807438054,-418.729601,0.00011522,2]
[327093026,1715807438063,-185.533396,0.00011522,2]
[327093027,1715807438072,-263.353715,0.00011522,2]
[327093028,1715807438082,-209.364801,0.00011522,2]
[327093029,1715807438091,-209.074331,0.00011522,2]
[327093030,1715807438100,-2255.494787,0.00011522,2]
[327093031,1715807438111,-181.335981,0.00011522,2]
[327093032,1715807438122,-1000.0,0.00011593,2]
[327093033,1715807438132,-10000.0,0.00011611,2]
[327093034,1715807438146,-3865.156068,0.00011666,2]
[327093035,1715807438155,-638.686991,0.00011666,2]
[327093036,1715807438166,-485.555802,0.00011666,2]
[327093037,1715807438448,-585.230476,0.00011666,2]
[327093038,1715807438458,-418.729601,0.00011666,2]
[327093040,1715807438468,-263.353715,0.00011666,2]
[327093042,1715807438478,-2255.494787,0.00011666,2]
[327093044,1715807438487,-181.335981,0.00011666,2]
[327093046,1715807438497,-7500.0,0.00011679,2]
[327093048,1715807438506,-1000.0,0.0001168,2]
[327093050,1715807438515,-172.44379033,0.0001168,2]
[327093052,1715807438524,-9566.29099391,0.0001168,2]
[327093054,1715807438533,-179.2376522,0.0001168,2]
[327093056,1715807438543,-300.0,0.000117,4]
[327093058,1715807438552,-185.533398,0.00011714,2]
[327093060,1715807438561,-155.0,0.00011777,2]
[327093062,1715807438570,-5559.62558201,0.00011777,2]
[327093064,1715807438580,-155.18265524,0.00011778,2]
[327093066,1715807438589,-3279.47094658,0.00011778,2]
[327093068,1715807438599,-161.73293461,0.00011778,2]
[327093070,1715807438608,-329.48874457,0.00011778,2]
[327093072,1715807438617,-1071.84695952,0.00011778,3]
[327093074,1715807438626,-195165.44816181,0.00011779,2]
[327093097,1715807438821,-683.175201,0.00011779,2]
[327093100,1715807438840,-738.98223662,0.00011522,2]
[327093102,1715807438850,-5461.31871476,0.00011779,2]
[327093105,1715807438862,-70396.99999999,0.00011779,2]
[327093107,1715807438878,-1346.4643134,0.00011779,2]
[327093110,1715807438891,-3264.2938,0.00011779,2]
[327093112,1715807438906,-524.18265939,0.00011779,2]
[327093115,1715807438917,-330.2694009,0.00011779,2]
[327093117,1715807438928,-42371.69999997,0.00011779,2]
[327093133,1715807440181,-17058.41804389,0.00011779,2]
[327093134,1715807440270,-376.73167057,0.00011779,2]
[327093135,1715807442592,-1296.9261199,0.00011779,2]
[327093136,1715807442603,-1883.34798482,0.00011779,2]
[327093137,1715807442690,-49659.37415034,0.00011779,2]
[327093138,1715807442704,-18819.32715519,0.00011779,2]
[327093139,1715807442718,-6041.99736684,0.00011779,2]
[327093140,1715807442730,-727669.45738403,0.00011779,2]
[327093141,1715807442741,-323.405,0.00011779,2]
[327093142,1715807442813,-266.51398,0.00011779,2]
[327093144,1715807442824,-696.92,0.00011779,2]
[327093153,1715807443121,-411420.5303723,0.00011779,2]
[327093154,1715807443134,-295.00000001,0.00011779,2]
[327093155,1715807443146,-945.39358411,0.00011779,2]
[327093156,1715807443200,-280.13148443,0.00011779,2]
[327093392,1715807445907,-3184.47986387,0.00011679,2]
[327093401,1715807446164,-122414.43913613,0.00011679,2]
[327093402,1715807446174,-254705.50605477,0.00011779,2]
[327093403,1715807446183,-500.0,0.0001178,2]
[327093404,1715807446193,-500.0,0.0001178,2]
[327093405,1715807446203,-500.0,0.0001178,2]
[327093406,1715807446213,-500.0,0.0001178,2]
[327093407,1715807446222,-500.0,0.0001178,2]
[327093408,1715807446231,-469.22,0.0001178,2]
[327093409,1715807446240,-500.0,0.0001178,2]
[327093410,1715807446250,-500.0,0.0001178,2]
[327093411,1715807446259,-500.0,0.0001178,2]
[327093413,1715807446268,-500.0,0.0001178,2]
[327093415,1715807446277,-500.0,0.0001178,2]
[327093417,1715807446286,-500.0,0.0001178,2]
[327093419,1715807446295,-500.0,0.0001178,2]
[327093421,1715807446304,-500.0,0.0001178,2]
[327093423,1715807446314,-500.0,0.0001178,2]
[327093425,1715807446325,-500.0,0.0001178,2]
[327093427,1715807446339,-500.0,0.0001178,2]
[327093429,1715807446348,-500.0,0.0001178,2]
[327093431,1715807446358,-500.0,0.0001178,2]
[327093433,1715807446368,-500.0,0.0001178,2]
[327093435,1715807446378,-500.0,0.0001178,2]
[327093437,1715807446387,-500.0,0.0001178,2]
[327093438,1715807446397,-500.0,0.0001178,2]
[327093441,1715807446407,-500.0,0.0001178,2]
[327093442,1715807446417,-290.62,0.0001178,2]
[327093443,1715807446427,-500.0,0.0001178,2]
[327093444,1715807446436,-500.0,0.0001178,2]
[327093445,1715807446445,-207.1997487,0.0001178,2]
[327093446,1715807446454,-500.0,0.0001178,2]
[327093447,1715807446464,-500.0,0.0001178,2]
[327093448,1715807446473,-500.0,0.0001178,2]
[327093449,1715807446483,-500.0,0.0001178,2]
[327093450,1715807446492,-500.0,0.0001178,2]
[327093451,1715807446502,-500.0,0.0001178,2]
[327093452,1715807446511,-257.83,0.0001178,2]
[327093453,1715807446521,-500.0,0.0001178,2]
[327093454,1715807446530,-500.0,0.0001178,2]
[327093455,1715807446540,-500.0,0.0001178,2]
[327093456,1715807446550,-500.0,0.0001178,2]
[327093457,1715807446559,-500.0,0.0001178,2]
[327093458,1715807446569,-332.08,0.0001178,2]
[327093459,1715807446578,-500.0,0.0001178,2]
[327093460,1715807446587,-500.0,0.0001178,2]
[327093461,1715807446597,-500.0,0.0001178,2]
[327093462,1715807446606,-500.0,0.0001178,2]
[327093463,1715807446616,-500.0,0.0001178,2]
[327093464,1715807446625,-500.0,0.0001178,2]
[327093465,1715807446634,-314.18,0.0001178,2]
[327093466,1715807446644,-500.0,0.0001178,2]
[327093467,1715807446654,-500.0,0.0001178,2]
[327093468,1715807446663,-471.84,0.0001178,2]
[327093469,1715807446672,-500.0,0.0001178,2]
[327093470,1715807446681,-500.0,0.0001178,2]
[327093471,1715807446690,-505.57428745,0.0001178,2]
[327093472,1715807446699,-500.0,0.0001178,2]
[327093473,1715807446709,-500.0,0.0001178,2]
[327093474,1715807446718,-500.0,0.0001178,2]
[327093475,1715807446728,-500.0,0.0001178,2]
[327093476,1715807446738,-500.0,0.0001178,2]
[327093477,1715807446747,-418.38,0.0001178,2]
[327093478,1715807446756,-500.0,0.0001178,2]
[327093479,1715807446765,-500.0,0.0001178,2]
[327093480,1715807446775,-500.0,0.0001178,2]
[327093481,1715807446784,-153.8372644,0.0001178,2]
[327093482,1715807446793,-500.0,0.0001178,2]
[327093483,1715807446802,-500.0,0.0001178,2]
[327093484,1715807446812,-500.0,0.0001178,2]
[327093485,1715807446821,-500.0,0.0001178,2]
[327093486,1715807446830,-500.0,0.0001178,2]
[327093487,1715807446839,-500.0,0.0001178,2]
[327093488,1715807446848,-500.0,0.0001178,2]
[327093489,1715807446858,-500.0,0.0001178,2]
[327093490,1715807446867,-500.0,0.0001178,2]
[327093491,1715807446876,-500.0,0.0001178,2]
[327093492,1715807446886,-500.0,0.0001178,2]
[327093493,1715807446895,-550.06,0.0001178,2]
[327093494,1715807446905,-500.0,0.0001178,2]
[327093495,1715807446915,-500.0,0.0001178,2]
[327093496,1715807446924,-500.0,0.0001178,2]
[327093497,1715807446934,-500.0,0.0001178,2]
[327093498,1715807446943,-500.0,0.0001178,2]
[327093499,1715807446953,-500.0,0.0001178,2]
[327093500,1715807446962,-500.0,0.0001178,2]
[327093501,1715807446971,-370.19,0.0001178,2]
[327093502,1715807446981,-500.0,0.0001178,2]
[327093503,1715807446991,-500.0,0.0001178,2]
[327093504,1715807447000,-627.16473793,0.0001178,2]
[327093505,1715807447010,-500.0,0.0001178,2]
[327093506,1715807447021,-500.0,0.0001178,2]
[327093507,1715807447030,-500.0,0.0001178,2]
[327093508,1715807447039,-500.0,0.0001178,2]
[327093509,1715807447048,-500.0,0.0001178,2]
[327093510,1715807447058,-500.0,0.0001178,2]
[327093511,1715807447067,-500.0,0.0001178,2]
[327093512,1715807447077,-500.0,0.0001178,2]
[327093513,1715807447087,-500.0,0.0001178,2]
[327093514,1715807447096,-500.0,0.0001178,2]
[327093515,1715807447105,-500.0,0.0001178,2]
[327093516,1715807447115,-500.0,0.0001178,2]
[327093517,1715807447124,-500.0,0.0001178,2]
[327093518,1715807447134,-192.45,0.0001178,2]
[327093519,1715807447143,-500.0,0.0001178,2]
[327093520,1715807447154,-500.0,0.0001178,2]
[327093521,1715807447163,-500.0,0.0001178,2]
[327093522,1715807447173,-500.0,0.0001178,2]
[327093523,1715807447182,-500.0,0.0001178,2]
[327093524,1715807447192,-500.0,0.0001178,2]
[327093525,1715807447201,-500.0,0.0001178,2]
[327093526,1715807447211,-500.0,0.0001178,2]
[327093527,1715807447220,-500.0,0.0001178,2]
[327093528,1715807447230,-538.53,0.0001178,2]
[327093529,1715807447240,-500.0,0.0001178,2]
[327093530,1715807447249,-500.0,0.0001178,2]
[327093531,1715807447259,-279.07361578,0.0001178,2]
[327093532,1715807447268,-500.0,0.0001178,2]
[327093533,1715807447277,-500.0,0.0001178,2]
[327093534,1715807447286,-500.0,0.0001178,2]
[327093535,1715807447296,-500.0,0.0001178,2]
[327093536,1715807447305,-500.0,0.0001178,2]
[327093537,1715807447315,-500.0,0.0001178,2]
[327093538,1715807447329,-500.0,0.0001178,2]
[327093539,1715807447339,-500.0,0.0001178,2]
[327093540,1715807447349,-419.04,0.0001178,2]
[327093541,1715807447358,-500.0,0.0001178,2]
[327093542,1715807447368,-431.38469551,0.0001178,2]
[327093543,1715807447379,-518.52,0.0001178,2]
[327093544,1715807447389,-518.52,0.0001178,2]
[327093545,1715807447398,-518.52,0.0001178,2]
[327093546,1715807447409,-518.52,0.0001178,2]
[327093547,1715807447419,-518.52,0.0001178,2]
[327093548,1715807447429,-518.52,0.0001178,2]
[327093549,1715807447438,-518.52,0.0001178,2]
[327093550,1715807447447,-518.52,0.0001178,2]
[327093551,1715807447457,-153.06,0.0001178,2]
[327093552,1715807447466,-500.0,0.0001178,2]
[327093553,1715807447475,-500.0,0.0001178,2]
[327093554,1715807447484,-500.0,0.0001178,2]
[327093555,1715807447494,-286.18925041,0.0001178,2]
[327093556,1715807447503,-500.0,0.0001178,2]
[327093557,1715807447512,-500.0,0.0001178,2]
[327093558,1715807447521,-500.0,0.0001178,2]
[327093559,1715807447530,-500.0,0.0001178,2]
[327093560,1715807447539,-500.0,0.0001178,2]
[327093561,1715807447549,-500.0,0.0001178,2]
[327093562,1715807447558,-500.0,0.0001178,2]
[327093563,1715807447567,-194.55,0.0001178,2]
[327093564,1715807447576,-500.0,0.0001178,2]
[327093565,1715807447585,-647.06,0.0001178,2]
[327093566,1715807447595,-500.0,0.0001178,2]
[327093567,1715807447604,-500.0,0.0001178,2]
[327093568,1715807447613,-246.7,0.0001178,2]
[327093569,1715807447622,-509.94,0.0001178,2]
[327093570,1715807447632,-500.0,0.0001178,2]
[327093571,1715807447641,-500.0,0.0001178,2]
[327093572,1715807447651,-500.0,0.0001178,2]
[327093573,1715807447660,-533.27133335,0.0001178,2]
[327093574,1715807447669,-500.0,0.0001178,2]
[327093575,1715807447679,-500.0,0.0001178,2]
[327093576,1715807447689,-500.0,0.0001178,2]
[327093577,1715807447698,-500.0,0.0001178,2]
[327093578,1715807447707,-500.0,0.0001178,2]
[327093579,1715807447717,-500.0,0.0001178,2]
[327093580,1715807447726,-500.0,0.0001178,2]
[327093581,1715807447736,-550.76822464,0.0001178,2]
[327093582,1715807447746,-500.0,0.0001178,2]
[327093583,1715807447756,-439.78,0.0001178,2]
[327093584,1715807447765,-500.0,0.0001178,2]
[327093585,1715807447774,-500.0,0.0001178,2]
[327093586,1715807447784,-533.73,0.0001178,2]
[327093587,1715807447794,-500.0,0.0001178,2]
[327093588,1715807447803,-500.0,0.0001178,2]
[327093589,1715807447812,-500.0,0.0001178,2]
[327093590,1715807447822,-500.0,0.0001178,2]
[327093591,1715807447832,-500.0,0.0001178,2]
[327093592,1715807447842,-500.0,0.0001178,2]
[327093593,1715807447851,-500.0,0.0001178,2]
[327093594,1715807447861,-500.0,0.0001178,2]
[327093595,1715807447870,-500.0,0.0001178,2]
[327093596,1715807447879,-1976.99,0.0001178,2]
[327093597,1715807447889,-500.0,0.0001178,2]
[327093598,1715807447898,-500.0,0.0001178,2]
[327093599,1715807447908,-1976.99,0.0001178,2]
[327093600,1715807447917,-500.0,0.0001178,2]
[327093601,1715807447927,-258.78,0.0001178,2]
[327093602,1715807447937,-1976.99,0.0001178,2]
[327093603,1715807447948,-1976.99,0.0001178,2]
[327093604,1715807447957,-1976.99,0.0001178,2]
[327093605,1715807447968,-1976.99,0.0001178,2]
[327093606,1715807447978,-1976.99,0.0001178,2]
[327093607,1715807447989,-1976.99,0.0001178,2]
[327093608,1715807447998,-500.0,0.0001178,2]
[327093609,1715807448007,-359.13162303,0.0001178,2]
[327093610,1715807448018,-500.0,0.0001178,2]
[327093611,1715807448027,-162.44,0.0001178,2]
[327093612,1715807448037,-2251.15,0.0001178,2]
[327093613,1715807448046,-2251.15,0.0001178,2]
[327093614,1715807448055,-2251.15,0.0001178,2]
[327093615,1715807448065,-2251.15,0.0001178,2]
[327093616,1715807448074,-2251.15,0.0001178,2]
[327093617,1715807448084,-2251.15,0.0001178,2]
[327093618,1715807448093,-2251.15,0.0001178,2]
[327093619,1715807448103,-500.0,0.0001178,2]
[327093620,1715807448112,-2251.15,0.0001178,2]
[327093621,1715807448121,-500.0,0.0001178,2]
[327093622,1715807448131,-500.0,0.0001178,2]
[327093623,1715807448141,-500.0,0.0001178,2]
[327093624,1715807448151,-500.0,0.0001178,2]
[327093625,1715807448161,-500.0,0.0001178,2]
[327093626,1715807448170,-420.8,0.0001178,2]
[327093627,1715807448179,-500.0,0.0001178,2]
[327093628,1715807448189,-500.0,0.0001178,2]
[327093629,1715807448199,-500.0,0.0001178,2]
[327093630,1715807448208,-500.0,0.0001178,2]
[327093631,1715807448218,-325.35,0.0001178,2]
[327093632,1715807448228,-1177.08,0.0001178,2]
[327093633,1715807448238,-1177.08,0.0001178,2]
[327093634,1715807448248,-1177.08,0.0001178,2]
[327093635,1715807448257,-1177.08,0.0001178,2]
[327093636,1715807448268,-1177.08,0.0001178,2]
[327093637,1715807448277,-1177.08,0.0001178,2]
[327093638,1715807448286,-1177.08,0.0001178,2]
[327093639,1715807448295,-1177.08,0.0001178,2]
[327093640,1715807448305,-500.0,0.0001178,2]
[327093641,1715807448314,-500.0,0.0001178,2]
[327093642,1715807448326,-500.0,0.0001178,2]
[327093643,1715807448339,-500.0,0.0001178,2]
[327093644,1715807448349,-474.88,0.0001178,2]
[327093645,1715807448358,-516.3,0.0001178,2]
[327093646,1715807448368,-500.0,0.0001178,2]
[327093647,1715807448378,-500.0,0.0001178,2]
[327093648,1715807448387,-500.0,0.0001178,2]
[327093649,1715807448397,-422.6,0.0001178,2]
[327093650,1715807448407,-500.0,0.0001178,2]
[327093651,1715807448416,-500.0,0.0001178,2]
[327093652,1715807448426,-500.0,0.0001178,2]
[327093653,1715807448436,-500.0,0.0001178,2]
[327093654,1715807448446,-500.0,0.0001178,2]
[327093655,1715807448455,-500.0,0.0001178,2]
[327093656,1715807448465,-500.0,0.0001178,2]
[327093657,1715807448475,-500.0,0.0001178,2]
[327093658,1715807448484,-500.0,0.0001178,2]
[327093659,1715807448494,-500.0,0.0001178,2]
[327093660,1715807448505,-500.0,0.0001178,2]
[327093661,1715807448515,-320.83,0.0001178,2]
[327093662,1715807448525,-597.32,0.0001178,2]
[327093663,1715807448535,-500.0,0.0001178,2]
[327093664,1715807448544,-500.0,0.0001178,2]
[327093665,1715807448553,-500.0,0.0001178,2]
[327093666,1715807448564,-500.0,0.0001178,2]
[327093667,1715807448573,-209.86,0.0001178,2]
[327093668,1715807448582,-500.0,0.0001178,2]
[327093669,1715807448592,-500.0,0.0001178,2]
[327093670,1715807448602,-344.01,0.0001178,2]
[327093671,1715807448612,-547.1,0.0001178,2]
[327093672,1715807448622,-500.0,0.0001178,2]
[327093673,1715807448631,-509.52035976,0.0001178,2]
[327093674,1715807448640,-500.0,0.0001178,2]
[327093675,1715807448651,-332.81,0.0001178,2]
[327093676,1715807448660,-502.92211542,0.0001178,2]
[327093677,1715807448670,-506.1853492,0.0001178,2]
[327093678,1715807448681,-503.11021047,0.0001178,2]
[327093679,1715807448692,-600.0,0.000118,4]
[327093680,1715807448701,-172.794908,0.0001181,2]
[327093681,1715807448711,-3865.156068,0.0001181,2]
[327093682,1715807448893,-638.686991,0.0001181,2]
[327093683,1715807448915,-485.555802,0.0001181,2]
[327093684,1715807448925,-585.230476,0.0001181,2]
[327093685,1715807448935,-418.729601,0.0001181,2]
[327093686,1715807448946,-263.353715,0.0001181,2]
[327093687,1715807448955,-2255.494787,0.0001181,2]
[327093688,1715807448965,-181.335981,0.0001181,2]
[327093689,1715807448974,-230.43,0.0001186,2]
[327093690,1715807448984,-741.0,0.0001186,2]
[327093691,1715807448994,-170.27458,0.00011898,2]
[327093692,1715807449003,-1000.0,0.000119,4]
[327093693,1715807449013,-185.533398,0.00011906,2]
[327093694,1715807449025,-252.35,0.00011946,2]
[327093695,1715807449035,-3865.156068,0.00011954,2]
[327093696,1715807449046,-638.686991,0.00011954,2]
[327093697,1715807449055,-485.555802,0.00011954,2]
[327093698,1715807449066,-585.230476,0.00011954,2]
[327093699,1715807449076,-418.729601,0.00011954,2]
[327093700,1715807449086,-263.353715,0.00011954,2]
[327093701,1715807449096,-2255.494787,0.00011954,2]
[327093702,1715807449105,-181.335981,0.00011954,2]
[327093703,1715807449115,-8100.81185947,0.00012,2]
[327093704,1715807449125,-410.03425881,0.00012,2]
[327093705,1715807449135,-1000.0,0.00012,2]
[327093706,1715807449145,-300.0,0.00012,2]
[327093707,1715807449155,-171.28,0.00012033,2]
[327093708,1715807449164,-172.794908,0.00012098,2]
[327093709,1715807449174,-185.533396,0.00012098,2]
[327093710,1715807449184,-209.364801,0.00012098,2]
[327093711,1715807449193,-3865.156068,0.00012098,2]
[327093712,1715807449202,-638.686991,0.00012098,2]
[327093713,1715807449211,-485.555802,0.00012098,2]
[327093714,1715807449221,-185.533398,0.00012098,2]
[327093715,1715807449230,-585.230476,0.00012098,2]
[327093716,1715807449240,-418.729601,0.00012098,2]
[327093717,1715807449249,-263.353715,0.00012098,2]
[327093718,1715807449259,-2255.494787,0.00012098,2]
[327093719,1715807449269,-181.335981,0.00012098,2]
[327093720,1715807449279,-180.0,0.00012175,2]
[327093721,1715807449288,-338.0,0.000122,2]
[327093722,1715807449297,-373.808,0.00012227,2]
[327093723,1715807449306,-914.209,0.00012227,2]
[327093724,1715807449316,-1790.0,0.00012227,2]
[327093725,1715807449327,-300.0,0.00012272,2]
[327093726,1715807449339,-2100.0,0.00012272,2]
[327093727,1715807449349,-179.23765219,0.0001229,2]
[327093728,1715807449358,-8402.6321981,0.000124,2]
[327093729,1715807449368,-252.27923315,0.000125,2]
[327093730,1715807449379,-155.0,0.000125,2]
[327093731,1715807449388,-1300.0,0.000125,4]
[327093732,1715807449397,-223.0,0.0001254,2]
[327093733,1715807449408,-1700.0,0.000126,4]
[327093734,1715807449417,-9566.29099382,0.00012655,2]
[327093735,1715807449428,-223.0,0.0001269,2]
[327093736,1715807449437,-300.0,0.000127,4]
[327093737,1715807449448,-12649.23290629,0.0001275,2]
[327093738,1715807449457,-5000.0,0.000128,2]
[327093739,1715807449467,-300.0,0.000128,4]
[327093740,1715807449476,-223.0,0.0001285,2]
[327093741,1715807449485,-205.0,0.0001285,2]
[327093742,1715807449495,-150.0,0.00012867,2]
[327093743,1715807449504,-300.00419726,0.00012869,2]
[327093744,1715807449514,-11611.8052751,0.0001287,2]
[327093745,1715807449523,-3000.0,0.0001287,2]
[327093746,1715807449533,-1000.0,0.00012881,2]
[327093747,1715807449542,-200.0,0.00012895,2]
[327093748,1715807449552,-1000.0,0.00012895,2]
[327093749,1715807449562,-500.0,0.00012895,2]
[327093750,1715807449572,-200.0,0.00012896,2]
[327093751,1715807449582,-1000.0,0.00012896,2]
[327093752,1715807449591,-500.0,0.00012896,2]
[327093753,1715807449601,-919.0,0.000129,2]
[327093754,1715807449610,-300.0,0.000129,4]
[327093755,1715807449620,-180.10524637,0.000129,2]
[327093756,1715807449631,-180.10524634,0.000129,2]
[327093757,1715807449640,-180.10524634,0.000129,2]
[327093758,1715807449650,-180.10524634,0.000129,2]
[327093759,1715807449659,-180.10524634,0.000129,2]
[327093760,1715807449669,-180.10524634,0.000129,2]
[327093761,1715807449678,-180.10524634,0.000129,2]
[327093762,1715807449687,-180.10524634,0.000129,2]
[327093763,1715807449697,-179.23765219,0.000129,2]
[327093764,1715807449707,-1466.0956888,0.000129,2]
[327093765,1715807449717,-300.66710104,0.000129,2]
[327093766,1715807449726,-150.0,0.00012916,2]
[327093767,1715807449736,-1976.99,0.00012927,2]
[327093768,1715807449746,-150.0,0.00012928,2]
[327093769,1715807449756,-150.0,0.00012931,2]
[327093770,1715807449766,-282.3848,0.00012935,2]
[327093771,1715807449776,-1651.78,0.00012978,2]
[327093772,1715807449786,-150.0,0.00012982,2]
[327093773,1715807449795,-224.0,0.0001299,2]
[327093774,1715807449804,-369.0,0.0001299,2]
[327093775,1715807449814,-223.0,0.0001299,2]
[327093776,1715807449823,-223.0,0.0001299,2]
[327093777,1715807449834,-205.0,0.0001299,2]
[327093778,1715807449843,-300.0,0.0001299,2]
[327093779,1715807449853,-153.34814853,0.00012996,2]
[327093780,1715807449862,-314.051606,0.00012997,2]
[327093781,1715807449872,-314.051606,0.00012997,2]
[327093782,1715807449882,-314.051606,0.00012997,2]
[327093783,1715807449891,-314.051606,0.00012997,2]
[327093784,1715807449901,-314.051606,0.00012997,2]
[327093785,1715807449911,-314.051606,0.00012997,2]
[327093786,1715807449921,-314.051606,0.00012997,2]
[327093787,1715807449930,-314.051606,0.00012997,2]
[327093788,1715807449940,-314.051606,0.00012997,2]
[327093789,1715807449952,-314.051606,0.00012998,2]
[327093790,1715807449961,-314.051606,0.00012998,2]
[327093791,1715807449971,-314.051606,0.00012998,2]
[327093792,1715807449980,-314.051606,0.00012998,2]
[327093793,1715807449990,-314.051606,0.00012998,2]
[327093794,1715807449999,-221.051606,0.00012998,2]
[327093795,1715807450009,-314.051606,0.00012998,2]
[327093796,1715807450019,-314.051606,0.00012998,2]
[327093797,1715807450028,-314.051606,0.00012998,2]
[327093798,1715807450039,-675.84486616,0.00012999,2]
[327093799,1715807450048,-500.0,0.00012999,2]
[327093800,1715807450058,-500.0,0.00012999,2]
[327093801,1715807450067,-286.06,0.00012999,2]
[327093802,1715807450077,-389.13039446,0.00012999,2]
[327093803,1715807450087,-518.52,0.00012999,2]
[327093804,1715807450096,-518.52,0.00012999,2]
[327093805,1715807450105,-518.52,0.00012999,2]
[327093806,1715807450115,-518.52,0.00012999,2]
[327093807,1715807450124,-518.52,0.00012999,2]
[327093808,1715807450132,-518.52,0.00012999,2]
[327093809,1715807450141,-518.52,0.00012999,2]
[327093810,1715807450151,-518.52,0.00012999,2]
[327093811,1715807450160,-518.52,0.00012999,2]
[327093812,1715807450169,-518.52,0.00012999,2]
[327093813,1715807450178,-518.52,0.00012999,2]
[327093814,1715807450187,-518.52,0.00012999,2]
[327093815,1715807450197,-518.52,0.00012999,2]
[327093816,1715807450207,-518.52,0.00012999,2]
[327093817,1715807450216,-518.52,0.00012999,2]
[327093818,1715807450225,-518.74711918,0.00012999,2]
[327093819,1715807450235,-505.98905049,0.00012999,2]
[327093820,1715807450244,-380.42,0.00012999,2]
[327093821,1715807450253,-1976.99,0.00012999,2]
[327093822,1715807450263,-1976.99,0.00012999,2]
[327093823,1715807450272,-1976.99,0.00012999,2]
[327093824,1715807450282,-1976.99,0.00012999,2]